fUSD/lending_fUSD_20250217
["ID","MTS","AMOUNT","RATE_DAILY","PERIOD"]
[353326224,1739766644089,-523.17500989,0.00013698,2]
[353326226,1739766644098,-500.0,0.00013698,2]
[353326227,1739766644107,-500.0,0.00013698,2]
[353326229,1739766644116,-500.0,0.00013698,2]
[353326231,1739766644125,-500.0,0.00013698,2]
[353326233,1739766644135,-500.0,0.00013698,2]
[353326234,1739766644144,-500.0,0.00013698,2]
[353326236,1739766644153,-500.0,0.00013698,2]
[353326238,1739766644164,-500.0,0.00013698,2]
[353326240,1739766644173,-511.11028786,0.00013698,2]
[353326242,1739766644182,-500.0,0.00013698,2]
[353326244,1739766644192,-500.0,0.00013698,2]
[353326246,1739766644201,-500.0,0.00013698,2]
[353326247,1739766644210,-500.0,0.00013698,2]
[353326249,1739766644219,-500.0,0.00013698,2]
[353326251,1739766644228,-500.0,0.00013698,2]
[353326253,1739766644237,-500.0,0.00013698,2]
[353326255,1739766644246,-500.0,0.00013698,2]
[353326257,1739766644256,-500.0,0.00013698,2]
[353326258,1739766644265,-519.09752643,0.00013698,2]
[353326260,1739766644274,-500.0,0.00013698,2]
[353326262,1739766644284,-503.71377191,0.00013698,2]
[353326264,1739766644297,-196.34145248,0.00013698,2]
[353326266,1739766644306,-500.0,0.00013698,2]
[353326268,1739766644315,-500.0,0.00013698,2]
[353326270,1739766644325,-500.0,0.00013698,2]
[353326272,1739766644335,-500.0,0.00013698,2]
[353326274,1739766644346,-500.0,0.00013698,2]
[353326276,1739766644355,-500.0,0.00013698,2]
[353326278,1739766644366,-500.0,0.00013698,2]
[353326280,1739766644376,-500.0,0.00013698,2]
[353326281,1739766644385,-501.25609229,0.00013698,2]
[353326283,1739766644395,-500.0,0.00013698,2]
[353326285,1739766644404,-500.0,0.00013698,2]
[353326287,1739766644415,-500.0,0.00013698,2]
[353326289,1739766644425,-500.0,0.00013698,2]
[353326291,1739766644434,-501.29030709,0.00013698,2]
[353326292,1739766644561,-500.0,0.00013698,2]
[353326293,1739766644589,-501.26299455,0.00013698,2]
[353326294,1739766644599,-500.0,0.00013698,2]
[353326295,1739766644608,-511.7106064,0.00013698,2]
[353326296,1739766644618,-500.0,0.00013698,2]
[353326297,1739766644627,-500.0,0.00013698,2]
[353326298,1739766644637,-500.0,0.00013698,2]
[353326299,1739766644646,-500.0,0.00013698,2]
[353326300,1739766644657,-525.37042439,0.00013698,2]
[353326301,1739766644667,-500.0,0.00013698,2]
[353326302,1739766644676,-500.0,0.00013698,2]
[353326303,1739766644685,-500.0,0.00013698,2]
[353326304,1739766644695,-500.0,0.00013698,2]
[353326305,1739766644704,-604.88,0.00013698,2]
[353326306,1739766644713,-500.0,0.00013698,2]
[353326307,1739766644723,-500.0,0.00013698,2]
[353326308,1739766644732,-156.562665,0.00013698,2]
[353326309,1739766644741,-500.0,0.00013698,2]
[353326310,1739766644750,-500.0,0.00013698,2]
[353326311,1739766644759,-500.0,0.00013698,2]
[353326312,1739766644769,-393.4956918,0.00013698,2]
[353326313,1739766644778,-500.0,0.00013698,2]
[353326314,1739766644788,-500.0,0.00013698,2]
[353326315,1739766644797,-500.0,0.00013698,2]
[353326316,1739766644807,-500.0,0.00013698,2]
[353326317,1739766644816,-500.0,0.00013698,2]
[353326318,1739766644826,-500.0,0.00013698,2]
[353326319,1739766644835,-179.917483,0.00013698,2]
[353326320,1739766644845,-500.0,0.00013698,2]
[353326321,1739766644855,-500.0,0.00013698,2]
[353326322,1739766644864,-500.0,0.00013698,2]
[353326323,1739766644873,-500.0,0.00013698,2]
[353326324,1739766644882,-501.47272399,0.00013698,2]
[353326325,1739766644892,-500.0,0.00013698,2]
[353326326,1739766644901,-500.0,0.00013698,2]
[353326327,1739766644911,-500.0,0.00013698,2]
[353326328,1739766644921,-500.0,0.00013698,2]
[353326329,1739766644930,-500.0,0.00013698,2]
[353326330,1739766644939,-500.0,0.00013698,2]
[353326331,1739766644948,-207.06357466,0.00013698,2]
[353326332,1739766644957,-489.02661605,0.00013698,2]
[353326333,1739766644967,-500.0,0.00013698,2]
[353326334,1739766644976,-500.0,0.00013698,2]
[353326335,1739766644986,-502.79454332,0.00013698,2]
[353326336,1739766644995,-500.0,0.00013698,2]
[353326337,1739766645004,-500.0,0.00013698,2]
[353326338,1739766645014,-500.0,0.00013698,2]
[353326339,1739766645023,-534.78484073,0.00013698,2]
[353326340,1739766645033,-500.0,0.00013698,2]
[353326341,1739766645042,-500.0,0.00013698,2]
[353326342,1739766645051,-500.0,0.00013698,2]
[353326343,1739766645060,-500.0,0.00013698,2]
[353326344,1739766645069,-500.0,0.00013698,2]
[353326345,1739766645079,-500.0,0.00013698,2]
[353326346,1739766645088,-500.0,0.00013698,2]
[353326347,1739766645097,-500.0,0.00013698,2]
[353326348,1739766645106,-500.0,0.00013698,2]
[353326349,1739766645116,-500.0,0.00013698,2]
[353326350,1739766645125,-500.0,0.00013698,2]
[353326351,1739766645134,-501.21570309,0.00013698,2]
[353326352,1739766645144,-500.0,0.00013698,2]
[353326353,1739766645153,-500.0,0.00013698,2]
[353326354,1739766645164,-502.57699079,0.00013698,2]
[353326355,1739766645173,-500.0,0.00013698,2]
[353326356,1739766645182,-500.0,0.00013698,2]
[353326357,1739766645191,-500.0,0.00013698,2]
[353326358,1739766645201,-500.0,0.00013698,2]
[353326359,1739766645210,-500.0,0.00013698,2]
[353326360,1739766645219,-500.0,0.00013698,2]
[353326361,1739766645228,-500.0,0.00013698,2]
[353326362,1739766645238,-53.40647576,0.00013698,2]
[353326363,1739766645565,-448.45074046,0.00013698,2]
[353326364,1739766645574,-500.0,0.00013698,2]
[353326365,1739766645584,-500.0,0.00013698,2]
[353326366,1739766645594,-500.0,0.00013698,2]
[353326367,1739766645603,-500.0,0.00013698,2]
[353326368,1739766645612,-500.0,0.00013698,2]
[353326369,1739766645621,-417.14166517,0.00013698,2]
[353326370,1739766645631,-513.22001522,0.00013698,2]
[353326372,1739766645640,-503.86471118,0.00013698,2]
[353326373,1739766645649,-500.0,0.00013698,2]
[353326374,1739766645658,-500.0,0.00013698,2]
[353326375,1739766645667,-500.0,0.00013698,2]
[353326376,1739766645676,-500.0,0.00013698,2]
[353326377,1739766645686,-500.0,0.00013698,2]
[353326378,1739766645695,-500.0,0.00013698,2]
[353326380,1739766645705,-500.0,0.00013698,2]
[353326381,1739766645714,-546.96336271,0.00013698,2]
[353326382,1739766645723,-500.0,0.00013698,2]
[353326383,1739766645733,-500.0,0.00013698,2]
[353326384,1739766645742,-362.60886664,0.00013698,2]
[353326385,1739766645752,-500.0,0.00013698,2]
[353326386,1739766645761,-500.0,0.00013698,2]
[353326388,1739766645770,-500.0,0.00013698,2]
[353326389,1739766645779,-500.0,0.00013698,2]
[353326390,1739766645788,-500.0,0.00013698,2]
[353326391,1739766645798,-500.0,0.00013698,2]
[353326392,1739766645807,-500.0,0.00013698,2]
[353326393,1739766645816,-500.0,0.00013698,2]
[353326395,1739766645825,-500.0,0.00013698,2]
[353326397,1739766645834,-500.0,0.00013698,2]
[353326398,1739766645843,-500.0,0.00013698,2]
[353326399,1739766645852,-519.77989122,0.00013698,2]
[353326400,1739766645864,-519.87121183,0.00013698,2]
[353326401,1739766645873,-500.0,0.00013698,2]
[353326402,1739766645882,-477.46970867,0.00013698,2]
[353326403,1739766645892,-510.36400165,0.00013698,2]
[353326404,1739766645901,-500.0,0.00013698,2]
[353326405,1739766645911,-500.0,0.00013698,2]
[353326406,1739766645920,-500.0,0.00013698,2]
[353326407,1739766645930,-500.0,0.00013698,2]
[353326408,1739766645939,-302.3819077,0.00013698,2]
[353326409,1739766645948,-500.0,0.00013698,2]
[353326410,1739766645957,-500.0,0.00013698,2]
[353326411,1739766645967,-500.0,0.00013698,2]
[353326412,1739766645976,-500.0,0.00013698,2]
[353326413,1739766645986,-506.50642288,0.00013698,2]
[353326414,1739766645995,-500.0,0.00013698,2]
[353326415,1739766646004,-500.0,0.00013698,2]
[353326416,1739766646014,-500.0,0.00013698,2]
[353326417,1739766646024,-500.0,0.00013698,2]
[353326418,1739766646034,-500.0,0.00013698,2]
[353326419,1739766646043,-500.0,0.00013698,2]
[353326420,1739766646053,-503.29861105,0.00013698,2]
[353326421,1739766646063,-500.0,0.00013698,2]
[353326422,1739766646072,-500.0,0.00013698,2]
[353326423,1739766646082,-500.0,0.00013698,2]
[353326424,1739766646091,-500.0,0.00013698,2]
[353326425,1739766646100,-500.0,0.00013698,2]
[353326426,1739766646109,-500.0,0.00013698,2]
[353326427,1739766646118,-511.84489621,0.00013698,2]
[353326428,1739766646127,-593.86464246,0.00013698,2]
[353326429,1739766646137,-500.0,0.00013698,2]
[353326430,1739766646145,-500.0,0.00013698,2]
[353326431,1739766646154,-500.0,0.00013698,2]
[353326432,1739766646164,-500.0,0.00013698,2]
[353326433,1739766646173,-500.0,0.00013698,2]
[353326434,1739766646183,-497.71614204,0.00013698,2]
[353326435,1739766646192,-500.0,0.00013698,2]
[353326437,1739766646201,-500.0,0.00013698,2]
[353326438,1739766646211,-500.0,0.00013698,2]
[353326439,1739766646220,-466.311299,0.00013698,2]
[353326440,1739766646228,-508.1583872,0.00013698,2]
[353326441,1739766646237,-505.77654096,0.00013698,2]
[353326442,1739766646247,-363.49359521,0.00013698,2]
[353326443,1739766646256,-500.0,0.00013698,2]
[353326444,1739766646265,-500.0,0.00013698,2]
[353326445,1739766646275,-500.0,0.00013698,2]
[353326446,1739766646285,-500.0,0.00013698,2]
[353326447,1739766646300,-500.0,0.00013698,2]
[353326448,1739766646309,-502.28372631,0.00013698,2]
[353326449,1739766646320,-358.14772739,0.00013698,2]
[353326450,1739766646331,-500.0,0.00013698,2]
[353326451,1739766646341,-500.0,0.00013698,2]
[353326452,1739766646352,-503.09892813,0.00013698,2]
[353326453,1739766646361,-500.0,0.00013698,2]
[353326454,1739766646372,-500.0,0.00013698,2]
[353326455,1739766646526,-500.0,0.00013698,2]
[353326456,1739766646535,-500.0,0.00013698,2]
[353326457,1739766646545,-500.0,0.00013698,2]
[353326458,1739766646556,-500.0,0.00013698,2]
[353326459,1739766646565,-500.0,0.00013698,2]
[353326460,1739766646575,-500.0,0.00013698,2]
[353326461,1739766646584,-509.70171564,0.00013698,2]
[353326462,1739766646593,-523.84156714,0.00013698,2]
[353326463,1739766646603,-500.0,0.00013698,2]
[353326464,1739766646612,-500.0,0.00013698,2]
[353326465,1739766646621,-500.0,0.00013698,2]
[353326466,1739766646630,-505.40947843,0.00013698,2]
[353326467,1739766646639,-500.0,0.00013698,2]
[353326468,1739766646648,-358.03020312,0.00013698,2]
[353326469,1739766646658,-508.41316122,0.00013698,2]
[353326470,1739766646667,-500.0,0.00013698,2]
[353326471,1739766646676,-500.0,0.00013698,2]
[353326472,1739766646685,-161.50201192,0.00013698,2]
[353326473,1739766646694,-500.0,0.00013698,2]
[353326474,1739766646703,-500.0,0.00013698,2]
[353326475,1739766646712,-500.0,0.00013698,2]
[353326476,1739766646722,-500.0,0.00013698,2]
[353326477,1739766646731,-502.88961343,0.00013698,2]
[353326478,1739766646740,-500.0,0.00013698,2]
[353326479,1739766646749,-500.0,0.00013698,2]
[353326480,1739766646758,-617.54,0.00013698,2]
[353326481,1739766646767,-515.31041447,0.00013698,2]
[353326482,1739766646776,-500.0,0.00013698,2]
[353326483,1739766646784,-500.0,0.00013698,2]
[353326484,1739766646794,-500.0,0.00013698,2]
[353326485,1739766646803,-500.0,0.00013698,2]
[353326486,1739766646812,-500.0,0.00013698,2]
[353326487,1739766646821,-500.0,0.00013698,2]
[353326488,1739766646831,-500.0,0.00013698,2]
[353326489,1739766646840,-500.0,0.00013698,2]
[353326490,1739766646849,-500.0,0.00013698,2]
[353326491,1739766646858,-500.0,0.00013698,2]
[353326492,1739766646868,-500.0,0.00013698,2]
[353326493,1739766646877,-500.0,0.00013698,2]
[353326494,1739766646886,-500.0,0.00013698,2]
[353326495,1739766646896,-500.0,0.00013698,2]
[353326496,1739766646905,-500.0,0.00013698,2]
[353326497,1739766646915,-471.11884195,0.00013698,2]
[353326498,1739766646925,-500.0,0.00013698,2]
[353326499,1739766646934,-500.0,0.00013698,2]
[353326500,1739766646943,-500.0,0.00013698,2]
[353326501,1739766646952,-500.0,0.00013698,2]
[353326502,1739766646961,-509.07371761,0.00013698,2]
[353326503,1739766646970,-500.0,0.00013698,2]
[353326504,1739766646980,-500.0,0.00013698,2]
[353326505,1739766646990,-500.0,0.00013698,2]
[353326506,1739766647000,-500.0,0.00013698,2]
[353326507,1739766647009,-500.97687233,0.00013698,2]
[353326508,1739766647019,-500.0,0.00013698,2]
[353326509,1739766647028,-500.0,0.00013698,2]
[353326510,1739766647038,-500.0,0.00013698,2]
[353326511,1739766647047,-506.85651084,0.00013698,2]
[353326512,1739766647057,-500.0,0.00013698,2]
[353326513,1739766647066,-500.0,0.00013698,2]
[353326514,1739766647075,-500.0,0.00013698,2]
[353326515,1739766647084,-500.0,0.00013698,2]
[353326516,1739766647093,-500.0,0.00013698,2]
[353326517,1739766647102,-500.0,0.00013698,2]
[353326518,1739766647112,-500.0,0.00013698,2]
[353326519,1739766647122,-500.0,0.00013698,2]
[353326520,1739766647132,-500.0,0.00013698,2]
[353326521,1739766647140,-500.0,0.00013698,2]
[353326522,1739766647150,-500.0,0.00013698,2]
[353326523,1739766647159,-488.17377795,0.00013698,2]
[353326524,1739766647168,-500.0,0.00013698,2]
[353326525,1739766647178,-500.0,0.00013698,2]
[353326526,1739766647187,-500.0,0.00013698,2]
[353326527,1739766647196,-1000.0,0.00013698,3]
[353326528,1739766647205,-500.0,0.00013698,2]
[353326529,1739766647215,-500.0,0.00013698,2]
[353326530,1739766647226,-500.0,0.00013698,2]
[353326531,1739766647236,-500.0,0.00013698,2]
[353326532,1739766647245,-500.0,0.00013698,2]
[353326533,1739766647255,-500.0,0.00013698,2]
[353326534,1739766647265,-504.18710018,0.00013698,2]
[353326535,1739766647274,-500.0,0.00013698,2]
[353326536,1739766647285,-500.0,0.00013698,2]
[353326537,1739766647299,-500.0,0.00013698,2]
[353326538,1739766647309,-500.0,0.00013698,2]
[353326539,1739766647318,-502.9144605,0.00013698,2]
[353326540,1739766647328,-500.0,0.00013698,2]
[353326541,1739766647337,-500.0,0.00013698,2]
[353326542,1739766647347,-500.0,0.00013698,2]
[353326543,1739766647356,-222.10121138,0.00013698,2]
[353326544,1739766647365,-500.0,0.00013698,2]
[353326545,1739766647375,-514.89613096,0.00013698,2]
[353326546,1739766647385,-500.0,0.00013698,2]
[353326547,1739766647394,-650.38,0.00013698,2]
[353326548,1739766647403,-500.0,0.00013698,2]
[353326549,1739766647413,-500.0,0.00013698,2]
[353326550,1739766647421,-500.0,0.00013698,2]
[353326551,1739766647430,-500.0,0.00013698,2]
[353326552,1739766647439,-608.99630468,0.00013698,2]
[353326553,1739766647449,-500.0,0.00013698,2]
[353326554,1739766647458,-500.0,0.00013698,2]
[353326555,1739766647467,-500.0,0.00013698,2]
[353326556,1739766647477,-500.0,0.00013698,2]
[353326557,1739766647490,-500.0,0.00013698,2]
[353326558,1739766647499,-500.0,0.00013698,2]
[353326559,1739766647508,-502.06568557,0.00013698,2]
[353326560,1739766647517,-500.0,0.00013698,2]
[353326561,1739766647526,-500.0,0.00013698,2]
[353326562,1739766647535,-500.0,0.00013698,2]
[353326563,1739766647545,-500.0,0.00013698,2]
[353326564,1739766647554,-500.0,0.00013698,2]
[353326565,1739766647563,-500.0,0.00013698,2]
[353326566,1739766647572,-549.78,0.00013698,2]
[353326567,1739766647582,-500.0,0.00013698,2]
[353326568,1739766647591,-500.0,0.00013698,2]
[353326569,1739766647600,-501.9098056,0.00013698,2]
[353326570,1739766647609,-500.0,0.00013698,2]
[353326571,1739766647619,-500.0,0.00013698,2]
[353326572,1739766647629,-500.0,0.00013698,2]
[353326573,1739766647639,-501.82390292,0.00013698,2]
[353326574,1739766647650,-500.0,0.00013698,2]
[353326575,1739766647660,-500.0,0.00013698,2]
[353326576,1739766647670,-500.0,0.00013698,2]
[353326577,1739766647680,-502.0878411,0.00013698,2]
[353326578,1739766647690,-500.0,0.00013698,2]
[353326579,1739766647700,-516.86821741,0.00013698,2]
[353326580,1739766647709,-500.0,0.00013698,2]
[353326581,1739766647719,-500.0,0.00013698,2]
[353326582,1739766647729,-500.0,0.00013698,2]
[353326583,1739766647738,-519.54857214,0.00013698,2]
[353326584,1739766647759,-1.44866697,0.00013698,2]
[353326585,1739766647768,-498.55133303,0.00013698,2]
[353326586,1739766647780,-1.44866697,0.00013698,2]
[353326587,1739766647789,-500.0,0.00013698,2]
[353326588,1739766647799,-76.01339241,0.00013698,2]
[353326589,1739766648605,-503.9,0.0001,2]
[353326590,1739766648616,-127.54,0.000105,2]
[353326591,1739766648630,-25.43,0.000105,2]
[353326592,1739766648641,-423.98660759,0.00013698,2]
[353326593,1739766648651,-506.19951364,0.00013698,2]
[353326594,1739766648662,-400.88387837,0.00013698,2]
[353326595,1739766648696,-99.11612163,0.00013698,2]
[353326596,1739766648707,-500.0,0.00013698,2]
[353326597,1739766648718,-500.0,0.00013698,2]
[353326598,1739766648728,-805.74,0.00013698,2]
[353326599,1739766648738,-500.0,0.00013698,2]
[353326600,1739766648748,-500.0,0.00013698,2]
[353326601,1739766648758,-500.0,0.00013698,2]
[353326602,1739766648768,-517.82,0.00013698,2]
[353326603,1739766648779,-505.24188806,0.00013698,2]
[353326604,1739766648789,-500.0,0.00013698,2]
[353326605,1739766648799,-500.0,0.00013698,2]
[353326606,1739766648810,-500.0,0.00013698,2]
[353326607,1739766648820,-500.0,0.00013698,2]
[353326608,1739766648830,-500.0,0.00013698,2]
[353326609,1739766648840,-500.0,0.00013698,2]
[353326610,1739766648850,-854.73,0.00013698,2]
[353326611,1739766648860,-500.0,0.00013698,2]
[353326612,1739766648870,-500.0,0.00013698,2]
[353326613,1739766648880,-500.0,0.00013698,2]
[353326614,1739766648890,-597.61,0.00013698,2]
[353326615,1739766648900,-500.0,0.00013698,2]
[353326616,1739766648909,-637.4,0.00013698,2]
[353326617,1739766648919,-522.59,0.00013698,2]
[353326618,1739766648929,-500.0,0.00013698,2]
[353326619,1739766648939,-500.0,0.00013698,2]
[353326620,1739766648949,-500.0,0.00013698,2]
[353326621,1739766648959,-500.0,0.00013698,2]
[353326622,1739766648969,-500.0,0.00013698,2]
[353326623,1739766648978,-500.0,0.00013698,2]
[353326624,1739766648988,-634.23,0.00013698,2]
[353326625,1739766648997,-500.0,0.00013698,2]
[353326626,1739766649007,-500.0,0.00013698,2]
[353326627,1739766649016,-505.04553684,0.00013698,2]
[353326628,1739766649025,-507.85495027,0.00013698,2]
[353326629,1739766649035,-1414.25,0.00013698,2]
[353326630,1739766649044,-500.0,0.00013698,2]
[353326631,1739766649053,-518.20938976,0.00013698,2]
[353326632,1739766649062,-500.0,0.00013698,2]
[353326633,1739766649071,-906.42,0.00013698,2]
[353326634,1739766649080,-572.2,0.00013698,2]
[353326635,1739766649090,-500.0,0.00013698,2]
[353326636,1739766649099,-643.41,0.00013698,2]
[353326637,1739766649108,-500.0,0.00013698,2]
[353326638,1739766649118,-506.22500125,0.00013698,2]
[353326639,1739766649127,-500.0,0.00013698,2]
[353326640,1739766649136,-1012.79,0.00013698,2]
[353326641,1739766649145,-500.0,0.00013698,2]
[353326642,1739766649154,-541.51145732,0.00013698,2]
[353326643,1739766649164,-500.0,0.00013698,2]
[353326644,1739766649173,-500.0,0.00013698,2]
[353326645,1739766649182,-710.66,0.00013698,2]
[353326646,1739766649191,-335.60804851,0.00013698,2]
[353326647,1739766649200,-500.0,0.00013698,2]
[353326648,1739766649210,-500.0,0.00013698,2]
[353326649,1739766649219,-500.0,0.00013698,2]
[353326650,1739766649228,-504.72451715,0.00013698,2]
[353326651,1739766649238,-1731.28,0.00013698,2]
[353326652,1739766649247,-1226.09,0.00013698,2]
[353326653,1739766649257,-500.0,0.00013698,2]
[353326654,1739766649268,-504.64081454,0.00013698,2]
[353326655,1739766649278,-500.0,0.00013698,2]
[353326656,1739766649290,-500.0,0.00013698,2]
[353326657,1739766649302,-500.0,0.00013698,2]
[353326658,1739766649313,-500.0,0.00013698,2]
[353326659,1739766649324,-500.0,0.00013698,2]
[353326660,1739766649335,-1200.29,0.00013698,2]
[353326661,1739766649345,-1014.87,0.00013698,2]
[353326662,1739766649355,-654.77,0.00013698,2]
[353326663,1739766649365,-474.24762632,0.00013698,2]
[353326664,1739766649377,-783.66,0.00013698,2]
[353326665,1739766649387,-500.0,0.00013698,2]
[353326666,1739766649398,-500.0,0.00013698,2]
[353326667,1739766649408,-843.7,0.00013698,2]
[353326668,1739766649419,-500.0,0.00013698,2]
[353326669,1739766649429,-1307.84,0.00013698,2]
[353326670,1739766649440,-500.0,0.00013698,2]
[353326671,1739766649450,-531.98,0.00013698,2]
[353326672,1739766649460,-500.0,0.00013698,2]
[353326673,1739766649470,-512.28210081,0.00013698,2]
[353326674,1739766649480,-500.0,0.00013698,2]
[353326675,1739766649490,-504.53277495,0.00013698,2]
[353326676,1739766649500,-651.48,0.00013698,2]
[353326677,1739766649510,-862.95,0.00013698,2]
[353326678,1739766649519,-1101.54,0.00013698,2]
[353326679,1739766649530,-500.0,0.00013698,2]
[353326680,1739766649540,-500.0,0.00013698,2]
[353326681,1739766649550,-756.08,0.00013698,2]
[353326682,1739766649560,-500.0,0.00013698,2]
[353326683,1739766649570,-500.0,0.00013698,2]
[353326684,1739766649580,-500.0,0.00013698,2]
[353326685,1739766649590,-505.56708591,0.00013698,2]
[353326686,1739766649599,-1000.0,0.00013698,2]
[353326687,1739766649609,-458.71684647,0.00013698,2]
[353326688,1739766649623,-41.28315353,0.00013698,2]
[353326689,1739766649633,-500.0,0.00013698,2]
[353326690,1739766649642,-504.83327529,0.00013698,2]
[353326691,1739766649651,-500.0,0.00013698,2]
[353326692,1739766649661,-500.0,0.00013698,2]
[353326693,1739766649671,-562.7980049,0.00013698,2]
[353326694,1739766649681,-500.0,0.00013698,2]
[353326695,1739766649690,-1165.61,0.00013698,2]
[353326696,1739766649700,-500.0,0.00013698,2]
[353326697,1739766649709,-500.0,0.00013698,2]
[353326698,1739766649719,-3828.38,0.00013698,2]
[353326699,1739766649728,-500.0,0.00013698,2]
[353326700,1739766649737,-500.0,0.00013698,2]
[353326701,1739766649746,-500.0,0.00013698,2]
[353326702,1739766649756,-500.0,0.00013698,2]
[353326703,1739766649765,-920.65,0.00013698,2]
[353326704,1739766649774,-180.97723134,0.00013698,2]
[353326705,1739766649786,-319.02276866,0.00013698,2]
[353326706,1739766649795,-500.0,0.00013698,2]
[353326707,1739766649804,-500.0,0.00013698,2]
[353326708,1739766649813,-500.0,0.00013698,2]
[353326709,1739766649823,-520.85182323,0.00013698,2]
[353326710,1739766649832,-500.0,0.00013698,2]
[353326711,1739766649841,-500.0,0.00013698,2]
[353326712,1739766649850,-500.0,0.00013698,2]
[353326713,1739766649859,-500.0,0.00013698,2]
[353326714,1739766649869,-500.0,0.00013698,2]
[353326715,1739766649877,-500.0,0.00013698,2]
[353326716,1739766649887,-500.0,0.00013698,2]
[353326717,1739766649896,-500.0,0.00013698,2]
[353326718,1739766649905,-1466.33,0.00013698,2]
[353326719,1739766649914,-500.0,0.00013698,2]
[353326720,1739766649923,-580.79540861,0.00013698,2]
[353326721,1739766649934,-298.54459139,0.00013698,2]
[353326722,1739766649943,-500.0,0.00013698,2]
[353326723,1739766649953,-1267.56,0.00013698,2]
[353326724,1739766649962,-503.28762498,0.00013698,2]
[353326725,1739766649971,-500.0,0.00013698,2]
[353326726,1739766649980,-516.95,0.00013698,2]
[353326727,1739766649991,-500.0,0.00013698,2]
[353326728,1739766650000,-996.17,0.00013698,2]
[353326729,1739766650010,-151.0,0.00013698,2]
[353326730,1739766650019,-500.0,0.00013698,2]
[353326731,1739766650029,-1161.06,0.00013698,2]
[353326732,1739766650038,-500.0,0.00013698,2]
[353326733,1739766650047,-416.47218787,0.00013698,2]
[353326734,1739766650057,-1057.93,0.00013698,2]
[353326735,1739766650068,-528.53120721,0.00013698,2]
[353326736,1739766650077,-506.84958724,0.00013698,2]
[353326737,1739766650086,-517.04,0.00013698,2]
[353326738,1739766650096,-502.93502042,0.00013698,2]
[353326739,1739766650105,-1308.34,0.00013698,2]
[353326740,1739766650114,-756.31,0.00013698,2]
[353326741,1739766650123,-731.57,0.00013698,2]
[353326742,1739766650132,-1281.09,0.00013698,2]
[353326743,1739766650141,-500.0,0.00013698,2]
[353326744,1739766650150,-1074.27,0.00013698,2]
[353326745,1739766650159,-151.0,0.00013698,2]
[353326746,1739766650169,-151.0,0.00013698,2]
[353326747,1739766650179,-500.0,0.00013698,2]
[353326748,1739766650188,-500.0,0.00013698,2]
[353326749,1739766650197,-933.16,0.00013698,2]
[353326750,1739766650206,-516.52,0.00013698,2]
[353326751,1739766650215,-500.0,0.00013698,2]
[353326752,1739766650224,-500.0,0.00013698,2]
[353326753,1739766650233,-1065.71,0.00013698,2]
[353326754,1739766650242,-918.43,0.00013698,2]
[353326755,1739766650251,-243.892557,0.00013698,2]
[353326756,1739766650261,-500.0,0.00013698,2]
[353326757,1739766650271,-3223.85,0.00013698,2]
[353326758,1739766650282,-500.0,0.00013698,2]
[353326759,1739766650301,-500.0,0.00013698,2]
[353326760,1739766650312,-630.47142396,0.00013698,2]